[Event "SRB-chT Women 1st League 2019"]
[Site "Subotica"]
[Date "2019.08.30"]
[Round "9"]
[White "Eric, Jovana"]
[Black "Djukic, Sandra"]
[Result "0-1"]
[ECO "B12"]
[WhiteElo "2270"]
[BlackElo "2179"]
[Annotator "ChessBase"]
[PlyCount "62"]
[EventDate "2019.08.23"]
[EventType "team-tourn"]
[EventCountry "SRB"]
[SourceTitle "playchess.com"]
[Source "ChessBase"]
[SourceQuality "1"]
[TimeControl "40/5400+30:1800+30"]

1. e4 {[%emt 0:00:30]} c6 {[%emt 0:00:30]} 2. d4 {[%emt 0:00:00]} d5 {[%emt 0:00:00]} 3. e5 {[%emt 0:00:00]} Bf5 {[%emt 0:00:00]} 4. Be3 {[%emt 0:00:30]} e6 {[%emt 0:00:30]} 5. Nd2 {[%emt 0:00:30]} Nd7 {[%emt 0:04:30]} 6. c3 {[%emt 0:01:30]} Ne7 {[%emt 0:05:30]} 7. f4 {[%emt 0:02:30]} Qb6 {[%emt 0:07:30]} 8. b4 {[%emt 0:03:30]} g5 {[%emt 0:15:30]} 9. fxg5 {[%emt 0:16:30]} Nxe5 {[%emt 0:01:30]} 10. Ngf3 {[%emt 0:00:30]} Nxf3+ {[%emt 0:24:30]} 11. Nxf3 {[%emt 0:00:30]} Bg7 {[%emt 0:10:30]} 12. Be2 {[%emt 0:03:30]} h6 {[%emt 0:11:12]} 13. gxh6 {[%emt 0:07:30]} Bxh6 {[%emt 0:00:04]} 14. Bxh6 {[%emt 0:00:30]} Rxh6 {[%emt 0:00:30]} 15. Qd2 {[%emt 0:01:30]} Rh8 {[%emt 0:02:04]} 16. a4 {[%emt 0:02:30]} Qc7 {[%emt 0:01:22]} 17. a5 {[%emt 0:02:30]} a6 {[%emt 0:04:25]} 18. Kd1 {[%emt 0:11:30]} f6 {[%emt 0:04:39]} 19. Kc1 {[%emt 0:02:30]} Be4 {[%emt 0:01:09]} 20. g4 {[%emt 0:05:30]} Rh3 {[%emt 0:01:52]} 21. Rf1 {[%emt 0:02:30]} O-O-O {[%emt 0:04:31]} 22. Kb2 {[%emt 0:01:30]} Bxf3 {[%emt 0:00:29]} 23. Rxf3 {[%emt 0:00:30]} Rxf3 {[%emt 0:00:26]} 24. Bxf3 {[%emt 0:00:00]} Rh8 {[%emt 0:00:38]} 25. Rh1 {[%emt 0:01:00]} Ng6 {[%emt 0:01:11]} 26. h3 {[%emt 0:06:30]} Qg3 {[%emt 0:01:16]} 27. Qg2 {[%emt 0:06:30]} Qxg2+ {[%emt 0:00:04]} 28. Bxg2 {[%emt 0:00:30]} Kd7 {[%emt 0:00:57]} 29. c4 {[%emt 0:04:30]} Nh4 {[%emt 0:00:37]} 30. Bf1 {[%emt 0:00:30]} Nf3 {[%emt 0:00:24]} 31. Kc3 {[%emt 0:00:30]} Kd6 {[%emt 0:00:58]} 0-1

[Event "SRB-chT Women 1st League 2019"]
[Site "Subotica"]
[Date "2019.08.30"]
[Round "9"]
[White "Hejazipour, Mitra"]
[Black "Injac, Teodora"]
[Result "0-1"]
[ECO "E90"]
[WhiteElo "2251"]
[BlackElo "2223"]
[Annotator "ChessBase"]
[PlyCount "45"]
[EventDate "2019.08.23"]
[EventType "team-tourn"]
[EventCountry "SRB"]
[SourceTitle "playchess.com"]
[Source "ChessBase"]
[SourceQuality "1"]
[TimeControl "40/5400+30:1800+30"]

1. d4 {[%emt 0:02:30]} Nf6 {[%emt 0:00:30]} 2. c4 {[%emt 0:00:00]} g6 {[%emt 0:00:30]} 3. Nc3 {[%emt 0:00:00]} Bg7 {[%emt 0:00:00]} 4. e4 {[%emt 0:00:30]} d6 {[%emt 0:00:00]} 5. h3 {[%emt 0:00:00]} O-O {[%emt 0:00:30]} 6. Be3 {[%emt 0:00:00]} e5 {[%emt 0:01:30]} 7. d5 {[%emt 0:00:30]} a5 {[%emt 0:00:00]} 8. g4 {[%emt 0:01:30]} Na6 {[%emt 0:00:00]} 9. Nf3 {[%emt 0:04:30]} Nd7 {[%emt 0:05:30]} 10. Be2 {[%emt 0:13:30]} Ndc5 {[%emt 0:01:30]} 11. g5 {[%emt 0:02:30]} c6 {[%emt 0:15:30]} 12. Nd2 {[%emt 0:03:30]} f5 {[%emt 0:02:30]} 13. gxf6 {[%emt 0:00:30]} Qxf6 {[%emt 0:01:30]} 14. Nf3 {[%emt 0:10:30]} Nb4 {[%emt 0:30:30]} 15. Bxc5 {[%emt 0:17:30]} dxc5 {[%emt 0:00:30]} 16. a3 {[%emt 0:02:30]} Na6 {[%emt 0:00:30]} 17. Qd2 {[%emt 0:00:30]} Nc7 {[%emt 0:00:30]} 18. O-O-O {[%emt 0:00:30]} Rd8 {[%emt 0:00:30]} 19. Qe3 {[%emt 0:00:30]} cxd5 {[%emt 0:00:30]} 20. cxd5 {[%emt 0:00:30]} Ne8 {[%emt 0:05:30]} 21. h4 {[%emt 0:06:30]} Nd6 {[%emt 0:00:30]} 22. h5 {[%emt 0:01:30]} gxh5 {[%emt 0:04:30]} 23. Rxh5 {[%emt 0:00:35]} 0-1

[Event "SRB-chT Women 1st League 2019"]
[Site "Subotica"]
[Date "2019.08.30"]
[Round "9"]
[White "Nestorovic, Katarina"]
[Black "Belic, Jordanka"]
[Result "0-1"]
[ECO "B01"]
[WhiteElo "2159"]
[BlackElo "2259"]
[Annotator "NA"]
[PlyCount "40"]
[EventDate "2019.08.23"]
[EventType "team-tourn"]
[EventCountry "SRB"]
[SourceTitle "playchess.com"]
[Source "ChessBase"]
[SourceQuality "1"]
[TimeControl "40/5400+30:1800+30"]

1. e4 {[%emt 0:00:30]} d5 {[%emt 0:00:30]} 2. exd5 {[%emt 0:00:00]} Qxd5 {[%emt 0:00:30]} 3. Nc3 {[%emt 0:00:00]} Qd6 {[%emt 0:00:00]} 4. d4 {[%emt 0:00:30]} c6 {[%emt 0:01:00]} 5. Nf3 {[%emt 0:04:30]} Nf6 {[%emt 0:00:00]} 6. Ne5 {[%emt 0:01:30]} Nbd7 {[%emt 0:07:00]} 7. Nc4 {[%emt 0:01:30]} Qc7 {[%emt 0:00:30]} 8. Qf3 {[%emt 0:02:30]} Nb6 {[%emt 0:04:30]} 9. h3 {[%emt 0:16:30]} Be6 {[%emt 0:03:30]} 10. Nxb6 {[%emt 0:02:30]} Qxb6 {[%emt 0:00:30]} 11. Qd3 {[%emt 0:20:30]} O-O-O {[%emt 0:06:30]} 12. Ne2 {[%emt 0:05:30]} g6 {[%emt 0:02:30]} 13. a4 {[%emt 0:04:30]} Bf5 {[%emt 0:07:30]} 14. Qc4 {[%emt 0:03:30]} Nd5 {[%emt 0:10:30]} 15. c3 {[%emt 0:02:30]} a5 {[%emt 0:02:30]} 16. Nf4 {[%emt 0:07:30]} e5 {[%emt 0:02:30]} 17. Nxd5 {[%emt 0:01:30]} Rxd5 {[%emt 0:00:30]} 18. dxe5 {[%emt 0:05:10]} Bc5 {[%emt 0:01:30]} 19. Be2 {[%emt 0:04:57]} Bxf2+ {[%emt 0:00:30]} 20. Kf1 {[%emt 0:00:03]} Bg3 {[%emt 0:00:30]} 0-1

[Event "SRB-chT Women 1st League 2019"]
[Site "Subotica"]
[Date "2019.08.30"]
[Round "9"]
[White "Zarkovic, Mila"]
[Black "Chelushkina, Irina"]
[Result "1/2-1/2"]
[ECO "B15"]
[WhiteElo "2141"]
[BlackElo "2275"]
[Annotator "ChessBase"]
[PlyCount "33"]
[EventDate "2019.08.23"]
[EventType "team-tourn"]
[EventCountry "SRB"]
[SourceTitle "playchess.com"]
[Source "ChessBase"]
[SourceQuality "1"]
[TimeControl "40/5400+30:1800+30"]

1. e4 g6 2. d4 Bg7 3. Nc3 c6 4. Be3 d5 5. h3 dxe4 6. Nxe4 Nd7 7. Nf3 Ngf6 8. Nxf6+ Nxf6 9. Bc4 O-O 10. O-O Nd5 11. Bg5 f6 12. Bd2 Be6 13. Bb3 b5 14. Re1 Bf7 15. a4 Re8 16. c4 bxc4 17. Bxc4 1/2-1/2

[Event "SRB-chT Women 1st League 2019"]
[Site "Subotica"]
[Date "2019.08.30"]
[Round "9"]
[White "Miladinovic, Lena"]
[Black "Velikic, Adela"]
[Result "0-1"]
[ECO "D12"]
[WhiteElo "2119"]
[BlackElo "2252"]
[Annotator "ChessBase"]
[PlyCount "28"]
[EventDate "2019.08.23"]
[EventType "team-tourn"]
[EventCountry "SRB"]
[SourceTitle "playchess.com"]
[Source "ChessBase"]
[SourceQuality "1"]
[TimeControl "40/5400+30:1800+30"]

1. d4 {[%emt 0:00:30]} d5 {[%emt 0:00:30]} 2. Nf3 {[%emt 0:00:00]} Nf6 {[%emt 0:00:00]} 3. c4 {[%emt 0:00:00]} c6 {[%emt 0:00:00]} 4. e3 {[%emt 0:00:00]} Bf5 {[%emt 0:03:30]} 5. Bd3 {[%emt 0:01:00]} Bg6 {[%emt 0:02:30]} 6. Nc3 {[%emt 0:03:30]} e6 {[%emt 0:01:30]} 7. O-O {[%emt 0:00:30]} Nbd7 {[%emt 0:01:30]} 8. Bxg6 {[%emt 0:03:30]} hxg6 {[%emt 0:00:30]} 9. Qd3 {[%emt 0:01:30]} Bb4 {[%emt 0:05:00]} 10. Bd2 {[%emt 0:13:30]} a5 {[%emt 0:01:30]} 11. Ne2 {[%emt 0:07:30]} Bd6 {[%emt 0:07:30]} 12. Bc3 {[%emt 0:00:00]} Ne4 {[%emt 0:10:30]} 13. Ng3 {[%emt 0:00:30]} f5 {[%emt 0:00:30]} 14. Qe2 {[%emt 0:06:30]} Qf6 {[%emt 0:00:30]} 0-1

[Event "SRB-chT Women 1st League 2019"]
[Site "Subotica"]
[Date "2019.08.30"]
[Round "9"]
[White "Bojicic, Andjela"]
[Black "Tomin, Ksenija"]
[Result "1-0"]
[ECO "E83"]
[WhiteElo "2016"]
[BlackElo "2041"]
[Annotator "NA"]
[PlyCount "48"]
[EventDate "2019.08.23"]
[EventType "team-tourn"]
[EventCountry "SRB"]
[SourceTitle "playchess.com"]
[Source "ChessBase"]
[SourceQuality "1"]
[TimeControl "40/5400+30:1800+30"]

1. d4 {[%emt 0:00:30]} Nf6 {[%emt 0:00:30]} 2. c4 {[%emt 0:00:00]} g6 {[%emt 0:00:00]} 3. Nc3 {[%emt 0:00:00]} Bg7 {[%emt 0:00:00]} 4. e4 {[%emt 0:00:00]} d6 {[%emt 0:00:00]} 5. f3 {[%emt 0:00:00]} O-O {[%emt 0:00:00]} 6. Be3 {[%emt 0:00:30]} a6 {[%emt 0:00:30]} 7. Qd2 {[%emt 0:00:30]} Nc6 {[%emt 0:00:30]} 8. Nge2 {[%emt 0:00:00]} Bd7 {[%emt 0:00:30]} 9. Nc1 {[%emt 0:05:30]} Nh5 {[%emt 0:07:30]} 10. Nb3 {[%emt 0:11:30]} a5 {[%emt 0:14:30]} 11. d5 {[%emt 0:01:30]} Ne5 {[%emt 0:11:30]} 12. Nd4 {[%emt 0:00:30]} f5 {[%emt 0:04:30]} 13. exf5 {[%emt 0:04:30]} gxf5 {[%emt 0:02:30]} 14. Be2 {[%emt 0:14:30]} f4 {[%emt 0:14:30]} 15. Bf2 {[%emt 0:00:30]} Bh6 {[%emt 0:12:30]} 16. Qc2 {[%emt 0:02:30]} Ng7 {[%emt 0:07:30]} 17. g4 {[%emt 0:11:30]} c5 {[%emt 0:01:30]} 18. dxc6 {[%emt 0:14:30]} bxc6 {[%emt 0:01:30]} 19. Ne4 {[%emt 0:03:30]} c5 {[%emt 0:07:15]} 20. Nb5 {[%emt 0:05:30]} Ne8 {[%emt 0:00:53]} 21. O-O-O {[%emt 0:06:30]} Rb8 {[%emt 0:05:39]} 22. h4 {[%emt 0:02:32]} Bg7 {[%emt 0:01:59]} 23. Nbc3 {[%emt 0:04:03]} Nf7 {[%emt 0:07:43]} 24. Ng5 {[%emt 0:02:57]} Nf6 {[%emt 0:00:39]} 1-0

[Event "SRB-chT Women 1st League 2019"]
[Site "Subotica"]
[Date "2019.08.30"]
[Round "9"]
[White "Stanimirovic, Marija"]
[Black "Vuckovic, Lidija"]
[Result "0-1"]
[ECO "E60"]
[WhiteElo "1896"]
[BlackElo "1866"]
[Annotator "NA"]
[PlyCount "28"]
[EventDate "2019.08.23"]
[EventType "team-tourn"]
[EventCountry "SRB"]
[SourceTitle "playchess.com"]
[Source "ChessBase"]
[SourceQuality "1"]
[TimeControl "40/5400+30:1800+30"]

1. c4 c5 2. Nc3 Nc6 3. Nf3 Nf6 4. d4 cxd4 5. Nxd4 g6 6. g3 Bg7 7. Bg2 O-O {[%emt 0:02:30] ck "W/0:07. c4 ( g6 ( 1:31] Bd3 Nc32. c4 ( g6 ( 1:31] Bd3 Nc3 1:31] Bg6 Bg7 (} 8. e4 {[%clk( [%clk} e6 {[%emt 0:05:30] d6} 9. O-O {[%emt 0:00:00] O-O (} a6 {[%clk ( [%clk hxg6} 10. Qd2 {[%emt 1:14:00] ( 8. a6 ( 10. ( 10. Bd2 Bd7 ( ( [%clk} a5 {[%emt 1:10:00] Nc1 11. Ne2 Nh5 ( (Bd2 Bd7 ( ( 11. Ne2 Nh5 ( ( Nb3 ( 12.1:18]Bc3 a5 Ne4 Ne. Ne. Ng3 ( ( Ne. Ne. Ng3 (} 11. Qe2 {[%emt 0:00:00] f5 f5 ( 0:56] exf5 Qe2 f5 f5 ( 0:56] exf5 gxf5 Be2 f4 Bf2} Bh6 {[%emt 0:00:00]} 12. Qc2 {[%emt 0:00:00] Ng7 g4 c5 dxc6 bxc6} Nxe4 {[%emt 0:00:00]} 13. c5 {[%emt 0:02:30] Nb5 Ne8 O-O-O} Rb8 {[%emt 0:07:48]} 14. h4 {[%emt 0:02:02]} Bg7 {[%emt 0:09:47] Nbc3 Nf7 Ng5 Nf6 Bd3 Ne5} 0-1

[Event "SRB-chT Women 1st League 2019"]
[Site "Subotica"]
[Date "2019.08.31"]
[Round "10"]
[White "Gaponenko, Inna"]
[Black "Dimitrijevic, Aleksandra"]
[Result "1-0"]
[ECO "B07"]
[WhiteElo "2446"]
[BlackElo "2142"]
[Annotator "NA"]
[PlyCount "115"]
[EventDate "2019.08.23"]
[EventType "team-tourn"]
[EventCountry "SRB"]
[SourceTitle "playchess.com"]
[Source "ChessBase"]
[SourceQuality "1"]
[TimeControl "40/5400+30:1800+30"]

1. e4 {[%emt 0:05:30]} d6 {[%emt 0:00:00]} 2. d4 {[%emt 0:00:30]} Nf6 {[%emt 0:00:00]} 3. Nc3 {[%emt 0:00:30]} e5 {[%emt 0:00:00]} 4. dxe5 {[%emt 0:00:30]} dxe5 {[%emt 0:00:00]} 5. Qxd8+ {[%emt 0:00:30]} Kxd8 {[%emt 0:00:30]} 6. Bg5 {[%emt 0:00:30]} Be6 {[%emt 0:00:30]} 7. O-O-O+ {[%emt 0:00:30]} Kc8 {[%emt 0:00:30]} 8. f4 {[%emt 0:00:30]} exf4 {[%emt 0:00:30]} 9. Nge2 {[%emt 0:00:30]} Nbd7 {[%emt 0:00:30]} 10. Nxf4 {[%emt 0:00:30]} Bb4 {[%emt 0:00:30]} 11. Bxf6 {[%emt 0:11:30]} Nxf6 {[%emt 0:04:30]} 12. Nxe6 {[%emt 0:00:30]} fxe6 {[%emt 0:00:00]} 13. Bc4 {[%emt 0:02:30]} Re8 {[%emt 0:05:00]} 14. e5 {[%emt 0:03:30]} Ng4 {[%emt 0:13:30]} 15. Rhe1 {[%emt 0:03:30]} c6 {[%emt 0:17:30]} 16. Rd4 {[%emt 0:04:30]} Nh6 {[%emt 0:08:30]} 17. Bxe6+ {[%emt 0:45:55]} Rxe6 {[%emt 0:00:30]} 18. Rxb4 {[%emt 0:00:01]} Kc7 {[%emt 0:00:30]} 19. Rh4 {[%emt 0:00:04]} Rae8 {[%emt 0:17:30]} 20. Rh5 {[%emt 0:00:31]} R8e7 {[%emt 0:00:30]} 21. Na4 {[%emt 0:03:51]} b6 {[%emt 0:00:00]} 22. b3 {[%emt 0:00:04]} Ng4 {[%emt 0:05:00]} 23. Rxh7 {[%emt 0:00:49]} Nxe5 {[%emt 0:00:30]} 24. Nb2 {[%emt 0:00:53]} b5 {[%emt 0:01:30]} 25. Rh4 {[%emt 0:05:05]} Nd7 {[%emt 0:02:30]} 26. Rxe6 {[%emt 0:00:38]} Rxe6 {[%emt 0:00:30]} 27. a4 {[%emt 0:01:49]} Kb6 {[%emt 0:00:30]} 28. Rg4 {[%emt 0:01:50]} g6 {[%emt 0:01:30]} 29. axb5 {[%emt 0:02:53]} cxb5 {[%emt 0:00:30]} 30. Nd3 {[%emt 0:00:03]} Rd6 {[%emt 0:01:30]} 31. Rg5 {[%emt 0:00:51]} a5 {[%emt 0:00:30]} 32. h4 {[%emt 0:00:17]} a4 {[%emt 0:01:14]} 33. bxa4 {[%emt 0:00:39]} bxa4 {[%emt 0:00:05]} 34. Kb2 {[%emt 0:01:17]} Kc7 {[%emt 0:02:07]} 35. Nf4 {[%emt 0:02:34]} Nf8 {[%emt 0:00:43]} 36. Ka3 {[%emt 0:00:23]} Rc6 {[%emt 0:00:54]} 37. Nd5+ {[%emt 0:01:06]} Kd7 {[%emt 0:03:30]} 38. Nb4 {[%emt 0:00:25]} Rc4 {[%emt 0:00:09]} 39. g3 {[%emt 0:00:41]} Ke7 {[%emt 0:00:50]} 40. Kxa4 {[%emt 0:00:00]} Kf7 {[%emt 0:00:00]} 41. Kb5 {[%emt 0:01:51]} Re4 {[%emt 0:03:28]} 42. Nd3 {[%emt 0:08:30]} Ne6 {[%emt 0:02:30]} 43. Re5 {[%emt 0:00:00]} Rg4 {[%emt 0:00:30]} 44. Re3 {[%emt 0:01:00]} Kf6 {[%emt 0:00:30]} 45. Ne5 {[%emt 0:02:30]} Rd4 {[%emt 0:01:30]} 46. c4 {[%emt 0:06:27]} Rd1 {[%emt 0:01:30]} 47. Kb6 {[%emt 0:05:21]} Rb1+ {[%emt 0:01:30]} 48. Kc6 {[%emt 0:00:05]} Nd4+ {[%emt 0:00:30]} 49. Kd5 {[%emt 0:00:04]} Nf5 {[%emt 0:00:30]} 50. Nd7+ {[%emt 0:00:39]} Kg7 {[%emt 0:02:30]} 51. Rd3 {[%emt 0:00:11]} Rg1 {[%emt 0:00:30]} 52. c5 {[%emt 0:01:10]} Rc1 {[%emt 0:04:30]} 53. g4 {[%emt 0:01:10]} Nxh4 {[%emt 0:00:30]} 54. c6 {[%emt 0:00:29]} Ng2 {[%emt 0:01:30]} 55. Rd4 {[%emt 0:01:43]} g5 {[%emt 0:01:30]} 56. Nc5 {[%emt 0:00:53]} Ne3+ {[%emt 0:05:30]} 57. Kd6 {[%emt 0:00:55]} Nc2 {[%emt 0:00:30]} 58. c7 {[%emt 0:00:24]} 1-0

[Event "SRB-chT Women 1st League 2019"]
[Site "Subotica"]
[Date "2019.08.31"]
[Round "10"]
[White "Bulmaga, Irina"]
[Black "Bojkovic, Natasa"]
[Result "1-0"]
[ECO "B43"]
[WhiteElo "2444"]
[BlackElo "2374"]
[Annotator "NA"]
[PlyCount "55"]
[EventDate "2019.08.23"]
[EventType "team-tourn"]
[EventCountry "SRB"]
[SourceTitle "playchess.com"]
[Source "ChessBase"]
[SourceQuality "1"]
[TimeControl "40/5400+30:1800+30"]

1. e4 {[%emt 0:00:00]} c5 {[%emt 0:00:30]} 2. Nf3 {[%emt 0:00:00]} e6 {[%emt 0:00:30]} 3. d4 {[%emt 0:00:00]} cxd4 {[%emt 0:00:30]} 4. Nxd4 {[%emt 0:00:00]} a6 {[%emt 0:00:30]} 5. Nc3 {[%emt 0:00:30]} b5 {[%emt 0:00:30]} 6. Bd3 {[%emt 0:00:30]} Bb7 {[%emt 0:00:30]} 7. O-O {[%emt 0:00:30]} Ne7 {[%emt 0:00:30]} 8. e5 {[%emt 0:14:30]} Ng6 {[%emt 0:18:30]} 9. Qh5 {[%emt 0:03:30]} Qh4 {[%emt 0:09:30]} 10. Qxh4 {[%emt 0:04:30]} Nxh4 {[%emt 0:00:30]} 11. Be4 {[%emt 0:04:30]} Nc6 {[%emt 0:02:30]} 12. Nxc6 {[%emt 0:04:30]} dxc6 {[%emt 0:06:30]} 13. a4 {[%emt 0:01:30]} b4 {[%emt 0:03:30]} 14. Nd1 {[%emt 0:03:30]} f5 {[%emt 0:08:30]} 15. exf6 {[%emt 0:04:30]} gxf6 {[%emt 0:00:00]} 16. g3 {[%emt 0:00:30]} f5 {[%emt 0:02:00]} 17. Bh1 {[%emt 0:01:30]} Ng6 {[%emt 0:00:30]} 18. Ne3 {[%emt 0:01:30]} O-O-O {[%emt 0:08:30]} 19. Nc4 {[%emt 0:00:30]} Bg7 {[%emt 0:00:30]} 20. Be3 {[%emt 0:17:30]} Ne5 {[%emt 0:12:30]} 21. Na5 {[%emt 0:00:30]} Ng4 {[%emt 0:00:30]} 22. Bc5 {[%emt 0:00:30]} Rd2 {[%emt 0:05:26]} 23. Bxb4 {[%emt 0:11:30]} Rxc2 {[%emt 0:00:07]} 24. Rac1 {[%emt 0:06:12]} Rxc1 {[%emt 0:02:12]} 25. Rxc1 {[%emt 0:00:39]} Bxb2 {[%emt 0:05:59]} 26. Rb1 {[%emt 0:01:00]} Bf6 {[%emt 0:01:54]} 27. Nxb7 {[%emt 0:00:45]} Kxb7 {[%emt 0:00:20]} 28. Bd6+ {[%emt 0:00:16]} 1-0

[Event "SRB-chT Women 1st League 2019"]
[Site "Subotica"]
[Date "2019.08.31"]
[Round "10"]
[White "Rapport, Jovana"]
[Black "Voyska, Margarita"]
[Result "1-0"]
[ECO "D13"]
[WhiteElo "2370"]
[BlackElo "2214"]
[Annotator "NA"]
[PlyCount "55"]
[EventDate "2019.08.23"]
[EventType "team-tourn"]
[EventCountry "SRB"]
[SourceTitle "playchess.com"]
[Source "ChessBase"]
[SourceQuality "1"]
[TimeControl "40/5400+30:1800+30"]

1. d4 {[%emt 0:01:30]} d5 {[%emt 0:00:30]} 2. c4 {[%emt 0:01:30]} c6 {[%emt 0:00:30]} 3. cxd5 {[%emt 0:00:30]} cxd5 {[%emt 0:00:00]} 4. Bf4 {[%emt 0:00:00]} Nc6 {[%emt 0:01:00]} 5. e3 {[%emt 0:00:00]} Nf6 {[%emt 0:00:00]} 6. Nc3 {[%emt 0:00:00]} a6 {[%emt 0:04:00]} 7. Bd3 {[%emt 0:01:00]} e6 {[%emt 0:03:30]} 8. Rc1 {[%emt 0:01:30]} Be7 {[%emt 0:01:30]} 9. Nf3 {[%emt 0:02:30]} O-O {[%emt 0:02:30]} 10. h3 {[%emt 0:04:30]} Bd7 {[%emt 0:06:30]} 11. O-O {[%emt 0:01:30]} Rc8 {[%emt 0:01:30]} 12. Qe2 {[%emt 0:04:30]} Qa5 {[%emt 0:21:30]} 13. Rfd1 {[%emt 0:06:30]} Rfd8 {[%emt 0:05:30]} 14. a3 {[%emt 0:07:30]} b5 {[%emt 0:06:30]} 15. e4 {[%emt 0:02:30]} b4 {[%emt 0:09:30]} 16. axb4 {[%emt 0:10:30]} Nxb4 {[%emt 0:01:30]} 17. Ra1 {[%emt 0:00:30]} Qb6 {[%emt 0:00:30]} 18. exd5 {[%emt 0:01:30]} Nfxd5 {[%emt 0:09:30]} 19. Bg5 {[%emt 0:07:30]} Nf6 {[%emt 0:05:15]} 20. Bb1 {[%emt 0:01:30]} Bc6 {[%emt 0:03:01]} 21. Ne5 {[%emt 0:06:30]} Rxd4 {[%emt 0:03:13]} 22. Re1 {[%emt 0:00:00]} Bb5 {[%emt 0:00:23]} 23. Qf3 {[%emt 0:01:00]} Nc6 {[%emt 0:01:12]} 24. Bxh7+ {[%emt 0:23:33]} Kf8 {[%emt 0:00:59]} 25. Bxf6 {[%emt 0:05:23]} Bxf6 {[%emt 0:02:03]} 26. Ng4 {[%emt 0:00:03]} Qd8 {[%emt 0:02:02]} 27. Be4 {[%emt 0:04:07]} Rd2 {[%emt 0:02:15]} 28. Nxb5 1-0

[Event "SRB-chT Women 1st League 2019"]
[Site "Subotica"]
[Date "2019.08.31"]
[Round "10"]
[White "Belic, Jordanka"]
[Black "Hejazipour, Mitra"]
[Result "1/2-1/2"]
[ECO "B51"]
[WhiteElo "2259"]
[BlackElo "2251"]
[Annotator "NA"]
[PlyCount "121"]
[EventDate "2019.08.23"]
[EventType "team-tourn"]
[EventCountry "SRB"]
[SourceTitle "playchess.com"]
[Source "ChessBase"]
[SourceQuality "1"]
[TimeControl "40/5400+30:1800+30"]

1. e4 {[%emt 0:03:30]} c5 {[%emt 0:04:30]} 2. Nf3 {[%emt 0:00:30]} d6 {[%emt 0:00:30]} 3. Bb5+ {[%emt 0:00:30]} Nd7 {[%emt 0:00:30]} 4. O-O {[%emt 0:00:30]} a6 {[%emt 0:00:30]} 5. Bxd7+ {[%emt 0:00:30]} Bxd7 {[%emt 0:00:30]} 6. c4 {[%emt 0:00:30]} e5 {[%emt 0:00:30]} 7. Nc3 {[%emt 0:00:30]} b5 {[%emt 0:00:30]} 8. d3 {[%emt 0:00:30]} Ne7 {[%emt 0:08:30]} 9. b3 {[%emt 0:02:30]} b4 {[%emt 0:01:30]} 10. Ne2 {[%emt 0:00:30]} Nc6 {[%emt 0:00:30]} 11. Ng3 {[%emt 0:04:30]} h5 {[%emt 0:11:30]} 12. h3 {[%emt 0:03:30]} Be7 {[%emt 0:03:30]} 13. Ne1 {[%emt 0:09:30]} h4 {[%emt 0:01:30]} 14. Nf5 {[%emt 0:04:30]} Bxf5 {[%emt 0:01:30]} 15. exf5 {[%emt 0:00:00]} Nd4 {[%emt 0:30:30]} 16. Qg4 {[%emt 0:00:00]} d5 {[%emt 0:01:30]} 17. Qxg7 {[%emt 0:04:30]} Bf6 {[%emt 0:00:30]} 18. Qg4 {[%emt 0:00:00]} Qd7 {[%emt 0:01:30]} 19. Be3 {[%emt 0:03:00]} dxc4 {[%emt 0:05:30]} 20. dxc4 {[%emt 0:02:30]} O-O-O {[%emt 0:00:30]} 21. Bxd4 {[%emt 0:10:30]} exd4 {[%emt 0:03:30]} 22. Qf3 {[%emt 0:01:30]} Qb7 {[%emt 0:01:30]} 23. Qxb7+ {[%emt 0:01:30]} Kxb7 {[%emt 0:00:00]} 24. Nd3 {[%emt 0:00:00]} Kb6 {[%emt 0:03:35]} 25. a3 {[%emt 0:03:00]} a5 {[%emt 0:05:15]} 26. axb4 {[%emt 0:01:30]} axb4 {[%emt 0:00:02]} 27. Ra2 {[%emt 0:00:30]} Ra8 {[%emt 0:00:26]} 28. Rfa1 {[%emt 0:02:30]} Rxa2 {[%emt 0:00:52]} 29. Rxa2 {[%emt 0:00:30]} Rh5 {[%emt 0:00:35]} 30. Ra8 {[%emt 0:00:30]} Rxf5 {[%emt 0:00:00]} 31. Rf8 {[%emt 0:00:30]} Bg5 {[%emt 0:00:28]} 32. Kf1 {[%emt 0:01:30]} Kc7 {[%emt 0:04:52]} 33. Ke2 {[%emt 0:00:30]} Kd7 {[%emt 0:00:02]} 34. Rh8 {[%emt 0:03:30]} Be7 {[%emt 0:03:08]} 35. Rh6 {[%emt 0:02:30]} Rg5 {[%emt 0:00:48]} 36. Kf3 {[%emt 0:02:30]} Rf5+ {[%emt 0:00:56]} 37. Ke4 {[%emt 0:00:30]} Rg5 {[%emt 0:00:16]} 38. Nf4 {[%emt 0:03:30]} Bd6 {[%emt 0:01:23]} 39. Rxh4 {[%emt 0:01:30]} Re5+ {[%emt 0:02:25]} 40. Kd3 {[%emt 0:00:00]} Rf5 {[%emt 0:00:00]} 41. g3 {[%emt 0:11:00]} Bxf4 {[%emt 0:02:27]} 42. gxf4 {[%emt 0:00:00]} Rf6 {[%emt 0:00:30]} 43. Rh5 {[%emt 0:00:00]} Rxf4 {[%emt 0:01:30]} 44. Rxc5 {[%emt 0:00:30]} Rxf2 {[%emt 0:01:30]} 45. Rd5+ {[%emt 0:06:30]} Kc6 {[%emt 0:01:30]} 46. Kxd4 {[%emt 0:01:30]} Rf3 {[%emt 0:01:30]} 47. Rh5 {[%emt 0:00:30]} Rxb3 {[%emt 0:00:30]} 48. Rh6+ {[%emt 0:00:30]} Kd7 {[%emt 0:03:30]} 49. Kc5 {[%emt 0:00:30]} Rb1 {[%emt 0:01:30]} 50. Rd6+ {[%emt 0:00:30]} Ke7 {[%emt 0:00:30]} 51. Rd3 {[%emt 0:00:30]} b3 {[%emt 0:06:52]} 52. Kb5 {[%emt 0:07:30]} b2 {[%emt 0:02:20]} 53. Rd2 {[%emt 0:02:30]} Rh1 {[%emt 0:00:53]} 54. Rxb2 {[%emt 0:00:00]} Rxh3 {[%emt 0:00:02]} 55. c5 {[%emt 0:00:00]} Rh8 {[%emt 0:01:25]} 56. Rd2 {[%emt 0:00:30]} Rd8 {[%emt 0:07:04]} 57. Re2+ {[%emt 0:00:30]} Kd7 {[%emt 0:00:57]} 58. Ra2 {[%emt 0:04:30]} Rb8+ {[%emt 0:00:14]} 59. Kc4 {[%emt 0:00:30]} Rb1 {[%emt 0:00:40]} 60. Ra7+ {[%emt 0:00:30]} Kc6 {[%emt 0:00:07]} 61. Rxf7 {[%emt 0:00:30]} 1/2-1/2